bitfinex/quotes_BTCUSD_20250814
["timestamp","ask_amount","ask_price","bid_price","bid_amount"]
[1755208497539,0.69468608,117870.0,117860.0,0.16984044]
[1755208498998,0.86436453,117870.0,117860.0,0.00014759]
[1755208499800,0.96436453,117870.0,117860.0,0.00014759]
[1755208500978,1.54059462,117870.0,117860.0,0.00014759]
[1755208501345,1.56709462,117870.0,117860.0,0.00014759]
[1755208503213,1.59470782,117870.0,117860.0,0.00014759]
[1755208503677,1.62480178,117870.0,117860.0,0.00014759]
[1755208504303,1.64053692,117870.0,117860.0,0.00014759]
[1755208506183,1.06430683,117870.0,117860.0,0.00014759]
[1755208506391,1.64053692,117870.0,117860.0,0.00014759]
[1755208507933,1.70053692,117870.0,117860.0,0.00014759]
[1755208508574,1.12430683,117870.0,117860.0,0.00014759]
[1755208508791,1.70053692,117870.0,117860.0,0.00014759]
[1755208508958,1.12430683,117870.0,117860.0,0.00014759]
[1755208509166,1.70053692,117870.0,117860.0,0.00014759]
[1755208509369,1.67044296,117870.0,117860.0,0.00014759]
[1755208510360,6.67044296,117870.0,117860.0,0.00014759]
[1755208516223,6.6783055,117870.0,117860.0,0.00014759]
[1755208518286,6.6773055,117870.0,117860.0,0.00014759]
[1755208518510,6.10107541,117870.0,117860.0,0.00014759]
[1755208518715,6.6793055,117870.0,117860.0,0.00014759]
[1755208520175,6.68521227,117870.0,117860.0,0.00014759]
[1755208520793,6.10898218,117870.0,117860.0,0.00014759]
[1755208520994,6.68521227,117870.0,117860.0,0.00014759]
[1755208523165,6.10898218,117870.0,117860.0,0.00014759]
[1755208523379,6.68521227,117870.0,117860.0,0.00014759]
[1755208525223,6.68526978,117870.0,117860.0,0.00014759]
[1755208527498,6.88906978,117870.0,117860.0,0.00014759]
[1755208528402,6.31283969,117870.0,117860.0,0.00014759]
[1755208528607,6.88906978,117870.0,117860.0,0.00014759]
[1755208529019,6.31283969,117870.0,117860.0,0.00014759]
[1755208529274,6.88906978,117870.0,117860.0,0.00014759]
[1755208529514,6.31283969,117870.0,117860.0,0.00014759]
[1755208529750,6.88906978,117870.0,117860.0,0.00014759]
[1755208530581,0.70989804,117870.0,117860.0,0.17509044]
[1755208530788,0.90989804,117870.0,117860.0,0.17509044]
[1755208530998,0.65007601,117870.0,117860.0,0.20713044]
[1755208531217,0.67426362,117870.0,117860.0,0.78336053]
[1755208531397,0.81666362,117870.0,117860.0,0.78336053]
[1755208532156,0.81078043,117870.0,117860.0,0.77811053]
[1755208532942,0.81078043,117870.0,117860.0,0.20188044]
[1755208533165,0.80878043,117870.0,117860.0,0.77811053]
[1755208533448,0.80978043,117870.0,117860.0,0.77811053]
[1755208533948,0.80979816,117870.0,117860.0,0.77811053]
[1755208534314,0.8946194,117870.0,117860.0,0.20188044]
[1755208535183,0.8946194,117870.0,117860.0,0.77811053]
[1755208535403,0.80979816,117870.0,117860.0,0.77811053]
[1755208536821,0.80979816,117870.0,117860.0,0.78348053]
[1755208536962,0.79401405,117870.0,117860.0,0.78348053]
[1755208537504,0.79389405,117870.0,117860.0,0.78348053]
[1755208539042,0.79289405,117870.0,117860.0,0.78348053]
[1755208539480,0.79389405,117870.0,117860.0,0.78348053]
[1755208541253,0.3648,117870.0,117860.0,0.78348053]
[1755208541461,0.061,117870.0,117860.0,0.78348053]
[1755208541675,0.2052,117870.0,117860.0,0.78348053]
[1755208541889,0.2052,117870.0,117860.0,1.20830177]
[1755208542114,0.2052,117870.0,117860.0,1.14897053]
[1755208542342,0.061,117870.0,117860.0,1.14897053]
[1755208542585,0.2042,117870.0,117860.0,1.14897053]
[1755208543662,0.2042,117870.0,117860.0,1.14360053]
[1755208543902,0.2042,117870.0,117860.0,1.14560053]
[1755208544086,0.06,117870.0,117860.0,1.14560053]
[1755208544294,0.06,117870.0,117860.0,1.23042177]
[1755208544765,1e-08,117870.0,117860.0,1.89146591]
[1755208545485,1e-08,117870.0,117860.0,1.91646591]
[1755208545748,1e-08,117890.0,117880.0,1.66212424]
[1755208545989,1e-08,117890.0,117880.0,1.97802953]
[1755208546193,1e-08,117890.0,117880.0,2.01100953]
[1755208548151,1e-08,117890.0,117880.0,2.61223962]
[1755208548379,1e-08,117890.0,117880.0,2.03600953]
[1755208548903,1e-08,117890.0,117880.0,2.03700953]
[1755208549258,1e-08,117890.0,117880.0,2.03600953]
[1755208549435,1e-08,117890.0,117880.0,2.04700953]
[1755208552001,1e-08,117890.0,117880.0,2.07248953]
[1755208553404,1e-08,117890.0,117880.0,2.33668953]
[1755208553625,1e-08,117890.0,117880.0,2.16756953]
[1755208553841,0.00216001,117890.0,117880.0,1.84471424]
[1755208554106,0.20513001,117890.0,117880.0,1.84256424]
[1755208554539,0.20513001,117890.0,117880.0,1.83156424]
[1755208554970,0.20513001,117890.0,117880.0,1.83356424]
[1755208555186,0.20513001,117890.0,117880.0,1.91838548]
[1755208555411,0.20513001,117890.0,117880.0,1.91638548]
[1755208555628,0.20513001,117890.0,117880.0,1.91738548]
[1755208555837,0.20513001,117890.0,117880.0,1.83256424]
[1755208557671,0.20513001,117890.0,117880.0,1.83471424]
[1755208557894,0.20216001,117890.0,117880.0,1.83471424]
[1755208558475,0.20216001,117890.0,117880.0,1.83793424]
[1755208558898,0.40513001,117890.0,117880.0,1.68860424]
[1755208559104,0.40513001,117890.0,117880.0,1.83248424]
[1755208562087,0.40216001,117890.0,117880.0,1.83463424]
[1755208564166,1e-08,117890.0,117880.0,2.00748953]
[1755208564426,1e-08,117890.0,117880.0,2.03724953]
[1755208565335,1e-08,117890.0,117880.0,2.30144953]
[1755208568651,0.2190101,117930.0,117920.0,0.16960651]
[1755208568858,0.0180001,117930.0,117920.0,1.50162943]
[1755208569067,0.20226,117930.0,117920.0,1.50474943]
[1755208569417,0.21800789,117930.0,117920.0,1.53022543]
[1755208569838,0.21850005,117930.0,117920.0,1.52710543]
[1755208570486,1e-08,117930.0,117920.0,1.86710543]
[1755208570702,1e-08,117930.0,117920.0,1.87022543]
[1755208572012,1e-08,117930.0,117920.0,1.87122543]
[1755208572655,1e-08,117930.0,117920.0,1.95603948]
[1755208573326,1e-08,117930.0,117920.0,1.96443971]
[1755208574229,1e-08,117930.0,117920.0,1.96343971]
[1755208574485,1e-08,117930.0,117920.0,1.96443971]
[1755208574892,1e-08,117930.0,117920.0,1.96343971]
[1755208575300,1e-08,117930.0,117920.0,1.96543971]
[1755208575932,1e-08,117930.0,117920.0,1.93151697]
[1755208580772,1e-08,117930.0,117920.0,1.91753797]
[1755208583097,0.00327,117960.0,117950.0,0.16956337]
[1755208583420,0.00327,117960.0,117950.0,0.88927346]
[1755208583421,0.01334523,117960.0,117950.0,0.88927346]
[1755208585300,0.15941537,117970.0,117960.0,0.16954899]
[1755208585511,0.34422942,117970.0,117960.0,0.74577908]
[1755208585946,0.15941537,117970.0,117960.0,0.74577908]
[1755208586574,0.15941537,117970.0,117960.0,0.75444874]
[1755208586791,0.14368,117970.0,117960.0,0.75444874]
[1755208587476,0.14368,117970.0,117960.0,0.75756874]
[1755208587685,0.14368,117970.0,117960.0,1.56402007]
[1755208588034,0.03573537,117980.0,117970.0,0.16953462]
[1755208588035,0.03572644,117980.0,117970.0,0.16953462]
[1755208588234,0.12,117980.0,117970.0,0.74576471]
[1755208588452,0.12,117980.0,117970.0,0.74888471]
[1755208589570,0.12,117980.0,117970.0,0.89228471]
[1755208589777,0.12,117980.0,117970.0,0.97710595]
[1755208589954,0.12,117980.0,117970.0,0.89424471]
[1755208590575,0.12,117980.0,117970.0,0.31801462]
[1755208590805,0.12,117980.0,117970.0,0.89424471]
[1755208591406,0.12,117980.0,117970.0,0.31801462]
[1755208591754,0.12,117980.0,117970.0,0.89424471]
[1755208592111,0.12,117980.0,117970.0,0.97906595]
[1755208592112,0.02,117980.0,117970.0,0.97906595]
[1755208593875,0.02,117980.0,117970.0,1.00452995]
[1755208594026,1e-08,117980.0,117970.0,1.49700586]
[1755208595095,1e-08,117980.0,117970.0,1.49800586]
[1755208599106,1e-08,117980.0,117970.0,0.92177577]
[1755208605396,1e-08,117980.0,117970.0,0.85411391]
[1755208605605,1e-08,117980.0,117970.0,0.85187391]
[1755208606486,1e-08,117980.0,117970.0,0.68219862]
[1755208606688,1e-08,117980.0,117970.0,0.67907862]
[1755208606916,1e-08,117980.0,117970.0,0.53599862]
[1755208608923,1e-08,117980.0,117970.0,0.67903862]
[1755208609882,1e-08,117980.0,117970.0,0.68196862]
[1755208613457,1e-08,117980.0,117970.0,0.68401862]
[1755208614857,0.0102,118000.0,117990.0,0.16950589]
[1755208614999,0.01817198,118000.0,117990.0,0.17155589]
[1755208615203,0.01817198,118000.0,117990.0,0.17448589]
[1755208615648,0.01817198,118000.0,117990.0,0.75071598]
[1755208618019,0.01817198,118000.0,117990.0,0.74866598]
[1755208618234,0.01817198,118000.0,117990.0,0.78550563]
[1755208618235,0.01028339,118000.0,117990.0,0.78550563]
[1755208618425,0.01818015,118000.0,117990.0,0.78755563]
[1755208619416,0.01028339,118000.0,117990.0,0.78755563]
[1755208619732,0.00028339,118000.0,117990.0,0.77755563]
[1755208619940,0.00028339,118000.0,117990.0,0.80301763]
[1755208620142,0.00028339,118000.0,117990.0,0.94581763]
[1755208622112,0.00028339,118000.0,117990.0,0.80301763]
[1755208624624,0.00028339,118000.0,117990.0,0.77755563]
[1755208625606,0.00028339,118000.0,117990.0,0.20132554]
[1755208625773,0.00028339,118000.0,117990.0,0.74071598]
[1755208625975,0.00028339,118000.0,117990.0,0.76617798]
[1755208626194,0.00028339,118000.0,117990.0,0.74071598]
[1755208626470,0.00028339,118000.0,117990.0,0.76617798]
[1755208626674,0.00028339,118000.0,117990.0,0.73573598]
[1755208626890,0.00028339,118000.0,117990.0,0.16248589]
[1755208627087,0.00028339,118000.0,117990.0,0.74070598]
[1755208627319,0.02028339,118000.0,117990.0,0.74070598]
[1755208630204,0.02028339,118000.0,117990.0,0.16447589]
[1755208630436,0.02028339,118000.0,117990.0,0.74070598]
[1755208631296,0.02028339,118000.0,117990.0,0.76616798]
[1755208633667,0.02028339,118000.0,117990.0,0.74070598]
[1755208634428,0.02028339,118000.0,117990.0,0.76616798]
[1755208634704,0.02028339,118000.0,117990.0,0.18993789]
[1755208634705,0.06661973,118000.0,117990.0,0.18993789]
[1755208634921,0.15143378,118000.0,117990.0,0.15950589]
[1755208635796,0.15143378,118000.0,117990.0,0.73573598]
[1755208635964,0.15143378,118000.0,117990.0,0.15950589]
[1755208636176,0.10509744,118000.0,117990.0,0.73573598]
[1755208636391,0.10509744,118000.0,117990.0,0.15950589]
[1755208637428,0.10509744,118000.0,117990.0,0.73573598]
[1755208638306,0.10509744,118000.0,117990.0,0.15950589]
[1755208638553,0.18991868,118000.0,117990.0,0.73573598]
[1755208639461,0.10509744,118000.0,117990.0,0.73573598]
[1755208640798,0.10509744,118000.0,117990.0,0.15950589]
[1755208641001,0.10509744,118000.0,117990.0,0.73573598]
[1755208641432,0.24753744,118000.0,117990.0,0.73871598]
[1755208641952,0.24753744,118000.0,117990.0,0.74070598]
[1755208642164,0.24753744,118000.0,117990.0,0.16447589]
[1755208642381,0.24753744,118000.0,117990.0,0.15950589]
[1755208642597,0.24753744,118000.0,117990.0,0.73573598]
[1755208642823,0.24753744,118000.0,117990.0,0.73871598]
[1755208643039,0.24753744,118000.0,117990.0,0.74070598]
[1755208647190,0.02028339,118000.0,117990.0,1.08070598]
[1755208647398,0.02028339,118000.0,117990.0,1.31693607]
[1755208647399,0.16268339,118000.0,117990.0,1.31693607]
[1755208647607,0.16268339,118000.0,117990.0,0.90127887]
[1755208647821,0.16268339,118000.0,117990.0,0.81645763]
[1755208648431,0.16268339,118000.0,117990.0,0.95881763]
[1755208651689,0.02028339,118000.0,117990.0,1.29881763]
[1755208654933,0.02028339,118000.0,117990.0,1.32427963]
[1755208658906,0.14248,118010.0,118000.0,0.16949152]
[1755208659087,0.14248,118010.0,118000.0,0.75095161]
[1755208659298,0.14248,118010.0,118000.0,0.83577285]
[1755208659520,0.0002,118010.0,118000.0,0.97797285]
[1755208661045,0.0002,118010.0,118000.0,0.83577285]
[1755208663105,0.0002,118010.0,118000.0,0.98652207]
[1755208665061,0.0002,118010.0,118000.0,0.84436207]
[1755208667435,0.0002,118010.0,118000.0,0.75954083]
[1755208667582,0.0002,118010.0,118000.0,1.33577092]
[1755208669121,0.0002,118010.0,118000.0,1.47785092]
[1755208671463,0.0002,118010.0,118000.0,0.90162083]
[1755208672149,0.0002,118010.0,118000.0,1.33577092]
[1755208672360,0.0002,118010.0,118000.0,0.98636207]
[1755208673215,0.0002,118010.0,118000.0,0.84436207]
[1755208673420,0.0002,118010.0,118000.0,0.98636207]
[1755208673850,0.0002,118010.0,118000.0,1.01182207]
[1755208674053,0.0002,118010.0,118000.0,0.98636207]
[1755208674262,0.0002,118010.0,118000.0,1.06211372]
[1755208674481,0.0002,118010.0,118000.0,0.97729248]
[1755208675294,0.0002,118010.0,118000.0,0.83529248]
[1755208675712,0.0002,118010.0,118000.0,0.75954083]
[1755208676004,0.0002,118010.0,118000.0,0.83529248]
[1755208676807,0.0002,118010.0,118000.0,0.90524049]
[1755208677658,0.0002,118010.0,118000.0,0.93070049]
[1755208677871,0.0002,118010.0,118000.0,0.90524049]
[1755208679226,0.0002,118010.0,118000.0,1.04716049]
[1755208679426,0.0002,118010.0,118000.0,1.13198173]
[1755208679854,0.0002,118010.0,118000.0,1.05623008]
[1755208680320,0.0022,118010.0,118000.0,1.07423008]
[1755208681105,0.0022,118010.0,118000.0,0.42805198]
[1755208681314,0.0022,118010.0,118000.0,0.98940884]
[1755208682271,0.0022,118010.0,118000.0,1.01486884]
[1755208683930,0.0022,118010.0,118000.0,0.36869074]
[1755208684145,0.0022,118010.0,118000.0,1.01486884]
[1755208685257,0.0022,118010.0,118000.0,0.36869074]
[1755208685463,0.0022,118010.0,118000.0,1.01486884]
[1755208686097,0.0022,118010.0,118000.0,0.36869074]
[1755208686312,0.0022,118010.0,118000.0,1.01486884]
[1755208689281,0.0022,118010.0,118000.0,0.36869074]
[1755208689494,0.0022,118010.0,118000.0,1.01486884]
[1755208690102,0.50293265,118030.0,118020.0,0.1694628]
[1755208690334,0.6877467,118030.0,118020.0,0.8156409]
[1755208691404,0.6887467,118030.0,118020.0,0.8306409]
[1755208692028,0.6887467,118030.0,118020.0,0.1844628]
[1755208692234,0.6887467,118030.0,118020.0,0.8306409]
[1755208693703,0.77356794,118030.0,118020.0,0.8306409]
[1755208693910,0.77356794,118030.0,118020.0,0.1844628]
[1755208696340,0.5469867,118030.0,118020.0,0.8306409]
[1755208696558,0.5386267,118030.0,118020.0,0.8358809]
[1755208696779,0.5385867,118030.0,118020.0,1.482059]
[1755208697183,0.5385867,118030.0,118020.0,0.8358809]
[1755208700650,0.5385867,118030.0,118020.0,0.1897028]
[1755208700859,0.5385867,118030.0,118020.0,0.8358809]
[1755208702141,0.5385867,118030.0,118020.0,0.1897028]
[1755208702354,0.5385867,118030.0,118020.0,0.1876828]
[1755208702830,0.5385867,118030.0,118020.0,0.8338609]
[1755208704290,0.5985867,118030.0,118020.0,0.8338609]
[1755208704531,0.68340794,118030.0,118020.0,0.1897028]
[1755208704735,0.68340794,118030.0,118020.0,0.8358809]
[1755208704875,0.88340794,118030.0,118020.0,0.8358809]
[1755208705091,0.7985867,118030.0,118020.0,0.8358809]
[1755208706582,0.7985867,118030.0,118020.0,0.1897028]
[1755208706796,0.7985867,118030.0,118020.0,0.8358809]
[1755208707884,0.7985867,118030.0,118020.0,0.1897028]
[1755208708095,0.7985867,118030.0,118020.0,0.8358809]
[1755208709923,0.7985867,118030.0,118020.0,0.1897028]
[1755208710107,0.87844537,118030.0,118020.0,0.8358809]
[1755208710569,0.7985867,118030.0,118020.0,0.8358809]
[1755208710806,0.7985867,118030.0,118020.0,0.1897028]
[1755208711020,0.7985867,118030.0,118020.0,0.8358809]
[1755208712815,0.7985867,118030.0,118020.0,0.1897028]
[1755208713005,0.7985867,118030.0,118020.0,0.8358809]
[1755208714908,0.7985867,118030.0,118020.0,0.1876828]
[1755208715111,0.7985867,118030.0,118020.0,0.8338609]
[1755208716783,0.87844537,118030.0,118020.0,0.8338609]
[1755208718092,0.7985867,118030.0,118020.0,0.8338609]
[1755208718726,0.7985867,118030.0,118020.0,0.1876828]
[1755208718941,0.7985867,118030.0,118020.0,0.8338609]
[1755208720398,0.7985867,118030.0,118020.0,0.8358409]
[1755208722854,0.7985867,118030.0,118020.0,0.1896628]
[1755208723072,0.7985867,118030.0,118020.0,0.8358409]
[1755208724114,0.87844537,118030.0,118020.0,0.8358409]
[1755208725319,0.87844537,118030.0,118020.0,0.1896628]
[1755208725524,0.7985867,118030.0,118020.0,0.8358409]
[1755208732174,0.7985867,118030.0,118020.0,0.1896628]
[1755208732378,0.7985867,118030.0,118020.0,0.8358409]
[1755208733410,0.7985867,118030.0,118020.0,0.1896628]
[1755208733616,0.7985867,118030.0,118020.0,0.8358409]
[1755208737290,0.87844537,118030.0,118020.0,0.1844628]
[1755208737524,0.9485867,118030.0,118020.0,0.8306409]
[1755208737724,0.9485867,118030.0,118020.0,0.1844628]
[1755208737925,0.9485867,118030.0,118020.0,0.8306409]
[1755208738471,0.9485867,118030.0,118020.0,0.8336009]
[1755208738835,1.03340794,118030.0,118020.0,0.8336009]
[1755208739424,0.9485867,118030.0,118020.0,0.8336009]
[1755208740278,0.9485867,118030.0,118020.0,0.8355809]
[1755208744603,0.9485867,118030.0,118020.0,0.1894028]
[1755208744818,0.9485867,118030.0,118020.0,0.8355809]
[1755208745252,0.9485867,118030.0,118020.0,0.1894028]
[1755208745468,1.03340794,118030.0,118020.0,0.8355809]
[1755208745677,1.03340794,118030.0,118020.0,0.1894028]
[1755208745888,1.03340794,118030.0,118020.0,0.8355809]
[1755208747241,1.03340794,118030.0,118020.0,0.1894028]
[1755208747429,1.03340794,118030.0,118020.0,0.8355809]
[1755208748414,1.03340794,118030.0,118020.0,0.1894028]
[1755208748890,1.03340794,118030.0,118020.0,0.8355809]
[1755208749705,1.03340794,118030.0,118020.0,0.8336009]
[1755208749916,1.03340794,118030.0,118020.0,0.8306409]
[1755208750320,1.03340794,118030.0,118020.0,0.8338709]
[1755208750521,1.03340794,118030.0,118020.0,0.1876928]
[1755208750712,1.03340794,118030.0,118020.0,0.8338709]
[1755208753208,1.03340794,118030.0,118020.0,0.8359509]
[1755208754238,0.9485867,118030.0,118020.0,0.8359509]
[1755208758579,0.9485867,118030.0,118020.0,0.1897728]
[1755208758787,0.94809132,118030.0,118020.0,0.8359509]
[1755208762108,0.94809132,118030.0,118020.0,0.1897728]
[1755208762337,0.94809132,118030.0,118020.0,0.8359509]
[1755208763244,0.94809132,118030.0,118020.0,0.1897728]
[1755208763877,0.94809132,118030.0,118020.0,0.8359509]
[1755208766362,0.94673132,118030.0,118020.0,0.8359509]
[1755208768074,0.94673132,118030.0,118020.0,0.1897728]
[1755208768303,0.93726832,118030.0,118020.0,0.8359509]
[1755208770794,0.93735159,118030.0,118020.0,0.8359509]
[1755208772526,1.02217283,118030.0,118020.0,0.8359509]
[1755208773120,1.02217283,118030.0,118020.0,0.1897728]
[1755208773358,1.02217283,118030.0,118020.0,0.8359509]
[1755208773757,0.93735159,118030.0,118020.0,0.8359509]
[1755208774632,0.93735159,118030.0,118020.0,0.1897728]
[1755208774832,0.93735159,118030.0,118020.0,0.8359509]
[1755208777344,0.93735159,118030.0,118020.0,0.1897728]
[1755208777548,0.93735159,118030.0,118020.0,0.8359509]
[1755208784478,1.02217283,118030.0,118020.0,0.8359509]
[1755208786602,1.02217283,118030.0,118020.0,0.1897728]
[1755208786820,1.02217283,118030.0,118020.0,0.8359509]
[1755208787568,1.02217283,118030.0,118020.0,0.1897728]
[1755208787844,0.44711159,118030.0,118020.0,0.8359509]
[1755208788063,0.44711159,118030.0,118020.0,0.1897728]
[1755208788348,0.58695159,118030.0,118020.0,1.54979086]
[1755208788571,0.58695159,118030.0,118020.0,0.90361276]
[1755208788774,0.50213754,118030.0,118020.0,1.54979086]
[1755208788921,0.50213754,118030.0,118020.0,0.90361276]
[1755208789137,0.50213754,118030.0,118020.0,0.92906976]
[1755208790359,0.36229754,118030.0,118020.0,0.92906976]
[1755208790573,0.50213754,118030.0,118020.0,1.57524786]
[1755208791202,0.50213754,118030.0,118020.0,0.92906976]
[1755208792110,0.50213754,118030.0,118020.0,0.28289166]
[1755208792381,0.50213754,118030.0,118020.0,0.92906976]
[1755208792588,0.50213754,118030.0,118020.0,0.28289166]
[1755208792801,0.50213754,118030.0,118020.0,0.92906976]
[1755208794913,0.50213754,118030.0,118020.0,0.2152298]
[1755208795220,0.50213754,118030.0,118020.0,0.8614079]
[1755208797780,0.50213754,118030.0,118020.0,0.2152298]
[1755208797994,0.50213754,118030.0,118020.0,0.8614079]
[1755208800477,1.38312969,118030.0,118020.0,0.1844628]
[1755208800697,1.63334344,118030.0,118020.0,0.1844628]
[1755208801129,1.63334344,118030.0,118020.0,0.015]
[1755208801130,2.48652676,118030.0,118020.0,0.015]
[1755208801350,2.53742676,118030.0,118020.0,0.015]
[1755208801566,2.55323606,118030.0,118020.0,0.015]
[1755208802635,1.26087986,118030.0,118020.0,0.015]
[1755208802858,1.85615796,118030.0,118020.0,0.015]
[1755208803600,1.85515796,118030.0,118020.0,0.1694628]
[1755208803997,1.85615796,118030.0,118020.0,0.1844628]
[1755208804818,1.85614839,118030.0,118020.0,0.1844628]
[1755208805110,1.85814839,118030.0,118020.0,0.1844628]
[1755208805316,1.84234866,118030.0,118020.0,0.1844628]
[1755208805526,7.50432351,118030.0,118020.0,0.015]
[1755208805739,6.29568604,118030.0,118020.0,0.015]
[1755208805944,7.58804224,118030.0,118020.0,0.015]
[1755208807966,7.61180751,118030.0,118020.0,0.015]
[1755208808202,7.58804224,118030.0,118020.0,0.015]
[1755208808430,7.61351124,118030.0,118020.0,0.015]
[1755208808646,7.60851124,118030.0,118020.0,0.015]
[1755208809326,7.63227651,118030.0,118020.0,0.015]
[1755208809993,8.30936705,118030.0,118020.0,0.00492595]
[1755208810200,8.69692949,118030.0,118020.0,0.00492595]
[1755208810416,0.71949152,118000.0,117990.0,0.06766186]
[1755208810599,7.662848,118000.0,117990.0,0.06766186]
[1755208811087,7.688324,118000.0,117990.0,0.06766186]
[1755208812695,7.546029,118000.0,117990.0,0.06766186]
[1755208813131,7.548029,118000.0,117990.0,0.07766186]
[1755208813344,7.548029,118000.0,117990.0,0.01]
[1755208813548,7.547029,118000.0,117990.0,0.01]
[1755208814182,6.3989678,118000.0,117990.0,0.01]
[1755208814400,7.65721254,118000.0,117990.0,0.01]
[1755208815045,0.55,117960.0,117950.0,0.24019349]
[1755208815260,1.41516541,117960.0,117950.0,0.24019349]
[1755208815900,1.4788386,117960.0,117950.0,0.23722349]
[1755208816111,1.5788386,117960.0,117950.0,0.24019349]
[1755208816315,1.5788386,117960.0,117950.0,0.24242688]
[1755208816941,1.005808,117960.0,117950.0,0.24827688]
[1755208817095,1.004808,117960.0,117950.0,0.23730688]
[1755208817311,1.004808,117960.0,117950.0,0.24430688]
[1755208817490,1.5808386,117960.0,117950.0,0.24430688]
[1755208817914,1.005808,117960.0,117950.0,0.24727688]
[1755208818114,1.5808386,117960.0,117950.0,0.24727688]
[1755208818348,1.5808386,117960.0,117950.0,0.24430688]
[1755208818896,1.58933318,117960.0,117950.0,0.24430688]
[1755208819507,1.58933318,117960.0,117950.0,0.24727688]
[1755208819725,1.75888217,117960.0,117950.0,0.24727688]
[1755208819925,1.58933318,117960.0,117950.0,0.24727688]
[1755208820169,1.44993318,117960.0,117950.0,0.24942688]
[1755208820367,0.78882158,117960.0,117950.0,0.24942688]
[1755208821401,0.73860783,117960.0,117950.0,0.24942688]
[1755208821771,0.59920783,117960.0,117950.0,0.24942688]
[1755208821967,0.56101564,117960.0,117950.0,0.24942688]
[1755208822220,0.70041564,117960.0,117950.0,0.24942688]
[1755208822406,0.69192106,117960.0,117950.0,0.24942688]
[1755208822561,0.7767423,117960.0,117950.0,0.24942688]
[1755208822985,0.69192106,117960.0,117950.0,0.24942688]
[1755208824303,0.71308702,117960.0,117950.0,0.18176502]
[1755208825366,1.28811762,117960.0,117950.0,0.18176502]
[1755208826379,1.29653655,117960.0,117950.0,0.18176502]
[1755208827401,0.72150595,117960.0,117950.0,0.18176502]
[1755208827607,0.80632719,117960.0,117950.0,0.18176502]
[1755208830894,0.80634228,117960.0,117950.0,0.18176502]
[1755208834337,0.81421723,117960.0,117950.0,0.18176502]
[1755208837197,0.98376622,117960.0,117950.0,0.18176502]
[1755208837627,0.98968165,117960.0,117950.0,0.18176502]
[1755208837836,0.98376622,117960.0,117950.0,0.18176502]
[1755208838044,0.81421723,117960.0,117950.0,0.18176502]
[1755208838245,0.82013632,117960.0,117950.0,0.18176502]
[1755208840067,0.98968531,117960.0,117950.0,0.18176502]
[1755208840666,0.82013632,117960.0,117950.0,0.18176502]
[1755208840873,0.98968531,117960.0,117950.0,0.18176502]
[1755208841073,0.82013632,117960.0,117950.0,0.17961502]
[1755208841323,0.98968531,117960.0,117950.0,0.17961502]
[1755208841502,0.98968531,117960.0,117950.0,0.18162502]
[1755208845601,0.96851935,117960.0,117950.0,0.18162502]
[1755208847481,0.96851935,117960.0,117950.0,0.18162502]
[1755208852249,0.96831935,117960.0,117950.0,0.18162502]
[1755208852683,0.96831935,117960.0,117950.0,0.17662502]
[1755208852887,0.96831935,117960.0,117950.0,0.17461502]
[1755208854267,0.96831935,117960.0,117950.0,0.01005339]
[1755208854487,1.54334995,117960.0,117950.0,0.00399599]
[1755208854710,6.77227111,117960.0,117950.0,0.00399599]
[1755208855557,6.81227111,117960.0,117950.0,0.00399599]
[1755208856016,7.48639586,117960.0,117950.0,0.00399599]
[1755208856231,7.51187886,117960.0,117950.0,0.00399599]
[1755208856432,7.53680004,117960.0,117950.0,0.00399599]
[1755208856678,7.62505004,117960.0,117950.0,0.00399599]
[1755208856924,0.71959213,117930.0,117920.0,0.2810265]
[1755208857167,0.71959213,117930.0,117920.0,0.2800965]
[1755208857168,1.02899202,117930.0,117920.0,0.2800965]
[1755208857420,1.02899202,117930.0,117920.0,0.2830365]
[1755208857876,1.00733906,117930.0,117920.0,0.10495]
[1755208858105,1.68236966,117930.0,117920.0,0.10294]
[1755208858366,1.71129082,117930.0,117920.0,0.10294]
[1755208859020,1.71129082,117930.0,117920.0,0.10394]
[1755208859452,1.13826022,117930.0,117920.0,0.10594]
[1755208859674,1.71329082,117930.0,117920.0,0.10594]
[1755208860119,1.71529082,117930.0,117920.0,0.10894]
[1755208860915,1.17870592,117930.0,117920.0,0.10894]
[1755208861148,1.75373652,117930.0,117920.0,0.10894]
[1755208862568,1.75373652,117930.0,117920.0,0.106]
[1755208863241,1.17870592,117930.0,117920.0,0.106]
[1755208863472,1.75373652,117930.0,117920.0,0.106]
[1755208865542,1.17870592,117930.0,117920.0,0.106]
[1755208865753,1.75373652,117930.0,117920.0,0.106]
[1755208866208,1.77922452,117930.0,117920.0,0.106]
[1755208866419,1.75373652,117930.0,117920.0,0.106]
[1755208867113,1.17870592,117930.0,117920.0,0.106]
[1755208867563,1.75373652,117930.0,117920.0,0.106]
[1755208868001,1.78884523,117930.0,117920.0,0.106]
[1755208872074,1.78884523,117930.0,117920.0,0.10913]
[1755208872714,1.78884523,117930.0,117920.0,0.106]
[1755208874139,1.21381463,117930.0,117920.0,0.106]
[1755208874331,1.78884523,117930.0,117920.0,0.106]
[1755208878580,1.80460673,117930.0,117920.0,0.106]
[1755208879472,1.80460673,117930.0,117920.0,0.10913]
[1755208880375,1.80460673,117930.0,117920.0,0.106]
[1755208881582,1.80460673,117930.0,117920.0,0.10913]
[1755208882226,6.22959158,117930.0,117920.0,0.10913]
[1755208882427,6.80462218,117930.0,117920.0,0.10913]
[1755208882585,6.81053858,117930.0,117920.0,0.10913]
[1755208883065,6.26099798,117930.0,117920.0,0.10913]
[1755208883269,6.83602858,117930.0,117920.0,0.106]
[1755208883608,6.26099798,117930.0,117920.0,0.106]
[1755208883807,6.83602858,117930.0,117920.0,0.106]
[1755208884445,6.26099798,117930.0,117920.0,0.106]
[1755208884668,6.83602858,117930.0,117920.0,0.106]
[1755208885290,6.84392813,117930.0,117920.0,0.106]
[1755208885539,6.87392499,117930.0,117920.0,0.106]
[1755208885904,6.29889439,117930.0,117920.0,0.106]
[1755208886084,6.84392813,117930.0,117920.0,0.106]
[1755208886496,6.26889753,117930.0,117920.0,0.106]
[1755208886760,6.84392813,117930.0,117920.0,0.106]
[1755208887496,0.36962089,117910.0,117890.0,0.00313]
[1755208887705,0.77054967,117890.0,117880.0,0.0004]
[1755208887936,6.71996371,117890.0,117880.0,0.0004]
[1755208888140,6.77438387,117890.0,117880.0,0.0004]
[1755208888723,6.80438073,117890.0,117880.0,0.0004]
[1755208888902,6.83532699,117890.0,117880.0,0.0004]
[1755208890059,6.87327894,117890.0,117880.0,0.0004]
[1755208890494,6.87427894,117890.0,117880.0,0.0024]
[1755208890691,6.87727894,117890.0,117880.0,0.0024]
[1755208891114,7.47723072,117890.0,117880.0,0.0024]
[1755208891330,6.90220012,117890.0,117880.0,0.0024]
[1755208891536,6.86424817,117890.0,117880.0,0.0024]
[1755208892718,6.88924817,117890.0,117880.0,0.0024]